[Event "Titled Tuesday Blitz February 14 Late 2023"]
[White "Fernandez, Maria Florencia"]
[Black "Bongo Akanga Ndjila, Barthelemy"]
[WhiteFideId "116459"]
[BlackFideId "10609431"]
[WhiteElo "2129"]
[BlackElo "1824"]
[Result "1-0"]
[Round "09"]
[TimeControl "180+2"]
[Date "2023.02.14"]
[WhiteClock "0:01:28"]
[BlackClock "0:00:06"]

1. d4 {[%clk 0:03:00]}  d5 {[%clk 0:01:14]} 2. c4 {[%clk 0:02:58]}  e6 {[%clk 0:01:14]} 3. Nc3 {[%clk 0:02:58]}  Nf6 {[%clk 0:01:14]} 4. cxd5 {[%clk 0:02:59]}  exd5 {[%clk 0:01:14]} 5. Bg5 {[%clk 0:02:59]}  c6 {[%clk 0:01:13]} 6. e3 {[%clk 0:03:00]}  Be7 {[%clk 0:01:13]} 7. Bd3 {[%clk 0:03:00]}  a6 {[%clk 0:01:11]} 8. Qc2 {[%clk 0:03:00]}  h6 {[%clk 0:01:07]} 9. Bh4 {[%clk 0:03:00]}  Be6 {[%clk 0:01:07]} 10. Nge2 {[%clk 0:03:00]}  Nbd7 {[%clk 0:01:07]} 11. O-O-O {[%clk 0:02:59]}  O-O {[%clk 0:01:06]} 12. Kb1 {[%clk 0:03:00]}  b5 {[%clk 0:01:05]} 13. Rc1 {[%clk 0:02:58]}  Qb6 {[%clk 0:01:01]} 14. h3 {[%clk 0:02:57]}  Rfc8 {[%clk 0:00:50]} 15. g4 {[%clk 0:02:51]}  Bd6 {[%clk 0:00:43]} 16. g5 {[%clk 0:02:50]}  hxg5 {[%clk 0:00:42]} 17. Bxg5 {[%clk 0:02:51]}  c5 {[%clk 0:00:37]} 18. Rcg1 {[%clk 0:02:43]}  cxd4 {[%clk 0:00:37]} 19. Nxd4 {[%clk 0:02:25]}  b4 {[%clk 0:00:35]} 20. Na4 {[%clk 0:02:12]}  Qa5 {[%clk 0:00:32]} 21. Qb3 {[%clk 0:02:09]}  Ne5 {[%clk 0:00:30]} 22. Bf5 {[%clk 0:01:57]}  Ne4 {[%clk 0:00:21]} 23. Bxe4 {[%clk 0:01:41]}  dxe4 {[%clk 0:00:21]} 24. Nxe6 {[%clk 0:01:41]}  Nd3 {[%clk 0:00:19]} 25. Bf6 {[%clk 0:01:32]}  g6 {[%clk 0:00:18]} 26. Rxg6+ {[%clk 0:01:29]}  fxg6 {[%clk 0:00:18]} 27. Ng5+ {[%clk 0:01:28]}  Kf8 {[%clk 0:00:06]} 28. Qf7# {[%clk 0:01:28]} 1-0


[Site "https://www.chess.com"]

[Event "Titled Tuesday Blitz February 14 Late 2023"]
[White "Balog, Imre"]
[Black "Rian, Kapriaga"]
[WhiteFideId "728446"]
[BlackFideId "7103263"]
[WhiteElo "2615"]
[BlackElo "2089"]
[Result "0-1"]
[Round "09"]
[TimeControl "180+2"]
[Date "2023.02.14"]
[WhiteClock "0:00:01"]
[BlackClock "0:00:12"]

1. e4 {[%clk 0:03:00]}  c6 {[%clk 0:02:56]} 2. d4 {[%clk 0:02:59]}  d5 {[%clk 0:02:56]} 3. Nd2 {[%clk 0:02:58]}  dxe4 {[%clk 0:02:56]} 4. Nxe4 {[%clk 0:02:59]}  Bf5 {[%clk 0:02:56]} 5. Ng3 {[%clk 0:02:58]}  Bg6 {[%clk 0:02:56]} 6. Nh3 {[%clk 0:02:58]}  e6 {[%clk 0:02:54]} 7. Nf4 {[%clk 0:02:56]}  Bd6 {[%clk 0:02:54]} 8. h4 {[%clk 0:02:50]}  Bxf4 {[%clk 0:02:38]} 9. Bxf4 {[%clk 0:02:48]}  h6 {[%clk 0:02:37]} 10. c3 {[%clk 0:02:32]}  Nf6 {[%clk 0:02:30]} 11. Bd3 {[%clk 0:01:57]}  Bxd3 {[%clk 0:02:28]} 12. Qxd3 {[%clk 0:01:58]}  O-O {[%clk 0:02:26]} 13. Ne2 {[%clk 0:01:42]}  c5 {[%clk 0:02:17]} 14. Qf3 {[%clk 0:01:18]}  cxd4 {[%clk 0:02:11]} 15. Qxb7 {[%clk 0:01:12]}  Nbd7 {[%clk 0:02:08]} 16. cxd4 {[%clk 0:00:51]}  Nd5 {[%clk 0:01:56]} 17. Bd6 {[%clk 0:00:46]}  Re8 {[%clk 0:01:52]} 18. Nc3 {[%clk 0:00:44]}  N7b6 {[%clk 0:01:50]} 19. Bg3 {[%clk 0:00:37]}  Qf6 {[%clk 0:01:39]} 20. O-O {[%clk 0:00:34]}  Qxd4 {[%clk 0:01:33]} 21. Rad1 {[%clk 0:00:32]}  Qc4 {[%clk 0:01:29]} 22. Nxd5 {[%clk 0:00:30]}  Nxd5 {[%clk 0:01:11]} 23. b3 {[%clk 0:00:25]}  Qc2 {[%clk 0:01:08]} 24. Rfe1 {[%clk 0:00:19]}  Qxa2 {[%clk 0:01:02]} 25. Qb5 {[%clk 0:00:15]}  Red8 {[%clk 0:00:56]} 26. Qc4 {[%clk 0:00:11]}  Rac8 {[%clk 0:00:54]} 27. Qg4 {[%clk 0:00:11]}  Kh7 {[%clk 0:00:28]} 28. Be5 {[%clk 0:00:11]}  Rg8 {[%clk 0:00:27]} 29. Bg3 {[%clk 0:00:07]}  Qxb3 {[%clk 0:00:26]} 30. Qe4+ {[%clk 0:00:06]}  Kh8 {[%clk 0:00:25]} 31. Qf3 {[%clk 0:00:06]}  Qxf3 {[%clk 0:00:25]} 32. gxf3 {[%clk 0:00:07]}  Ra8 {[%clk 0:00:25]} 33. Ra1 {[%clk 0:00:07]}  a5 {[%clk 0:00:25]} 34. Be5 {[%clk 0:00:07]}  Rgc8 {[%clk 0:00:24]} 35. Rec1 {[%clk 0:00:06]}  Rxc1+ {[%clk 0:00:23]} 36. Rxc1 {[%clk 0:00:07]}  a4 {[%clk 0:00:23]} 37. Ra1 {[%clk 0:00:06]}  Kg8 {[%clk 0:00:23]} 38. Kf1 {[%clk 0:00:06]}  f6 {[%clk 0:00:23]} 39. Bd4 {[%clk 0:00:06]}  g5 {[%clk 0:00:21]} 40. hxg5 {[%clk 0:00:03]}  hxg5 {[%clk 0:00:21]} 41. Ke2 {[%clk 0:00:03]}  Kf7 {[%clk 0:00:21]} 42. Bb2 {[%clk 0:00:03]}  e5 {[%clk 0:00:20]} 43. Ba3 {[%clk 0:00:03]}  Ke6 {[%clk 0:00:19]} 44. Kd3 {[%clk 0:00:04]}  Rc8 {[%clk 0:00:19]} 45. Ke2 {[%clk 0:00:02]}  Rc2+ {[%clk 0:00:18]} 46. Ke1 {[%clk 0:00:01]}  Rc3 {[%clk 0:00:17]} 47. Bf8 {[%clk 0:00:02]}  Nf4 {[%clk 0:00:16]} 48. Rxa4 {[%clk 0:00:02]}  Rxf3 {[%clk 0:00:14]} 49. Ra6+ {[%clk 0:00:02]}  Kf5 {[%clk 0:00:13]} 50. Bc5 {[%clk 0:00:02]}  Rc3 {[%clk 0:00:13]} 51. Be3 {[%clk 0:00:01]}  Nd5 {[%clk 0:00:12]} 52. Rd6 {[%clk 0:00:01]}  Nxe3 {[%clk 0:00:12]} 0-1


[Site "https://www.chess.com"]

[Event "Titled Tuesday Blitz February 14 Late 2023"]
[White "Carrasco Miranda, Andres"]
[Black "ritanovikova"]
[WhiteFideId "3405990"]
[WhiteElo "2240"]
[BlackElo "2189"]
[Result "1-0"]
[Round "09"]
[TimeControl "180+2"]
[Date "2023.02.14"]
[WhiteClock "0:00:54"]
[BlackClock "0:00:02"]

1. d4 {[%clk 0:03:00]}  e5 {[%clk 0:02:18]} 2. dxe5 {[%clk 0:02:59]}  Nc6 {[%clk 0:02:18]} 3. Nf3 {[%clk 0:02:57]}  Qe7 {[%clk 0:02:18]} 4. g3 {[%clk 0:02:28]}  Nxe5 {[%clk 0:02:13]} 5. Nxe5 {[%clk 0:02:29]}  Qxe5 {[%clk 0:02:14]} 6. Bg2 {[%clk 0:02:29]}  d6 {[%clk 0:02:11]} 7. O-O {[%clk 0:02:28]}  Nf6 {[%clk 0:02:11]} 8. c4 {[%clk 0:02:29]}  Be7 {[%clk 0:02:10]} 9. Nc3 {[%clk 0:02:29]}  O-O {[%clk 0:02:09]} 10. Bf4 {[%clk 0:02:30]}  Qh5 {[%clk 0:02:08]} 11. e4 {[%clk 0:02:25]}  Qxd1 {[%clk 0:02:06]} 12. Rfxd1 {[%clk 0:02:26]}  a6 {[%clk 0:02:04]} 13. a4 {[%clk 0:02:25]}  Bg4 {[%clk 0:02:01]} 14. f3 {[%clk 0:02:19]}  Be6 {[%clk 0:02:00]} 15. Nd5 {[%clk 0:02:19]}  Nxd5 {[%clk 0:01:55]} 16. cxd5 {[%clk 0:02:20]}  Bd7 {[%clk 0:01:46]} 17. Rdc1 {[%clk 0:02:19]}  Rac8 {[%clk 0:01:30]} 18. Bd2 {[%clk 0:02:10]}  c5 {[%clk 0:01:23]} 19. dxc6 {[%clk 0:02:08]}  Rxc6 {[%clk 0:01:19]} 20. Rxc6 {[%clk 0:01:51]}  Bxc6 {[%clk 0:01:20]} 21. Bc3 {[%clk 0:01:47]}  d5 {[%clk 0:01:16]} 22. e5 {[%clk 0:01:46]}  Bc5+ {[%clk 0:01:14]} 23. Kf1 {[%clk 0:01:46]}  d4 {[%clk 0:01:11]} 24. Bd2 {[%clk 0:01:44]}  Bd5 {[%clk 0:01:03]} 25. Rc1 {[%clk 0:01:35]}  b6 {[%clk 0:00:54]} 26. f4 {[%clk 0:01:31]}  Bxg2+ {[%clk 0:00:50]} 27. Kxg2 {[%clk 0:01:32]}  a5 {[%clk 0:00:50]} 28. Kf3 {[%clk 0:01:29]}  Re8 {[%clk 0:00:45]} 29. Bxa5 {[%clk 0:01:22]}  Ra8 {[%clk 0:00:39]} 30. b4 {[%clk 0:01:14]}  Be7 {[%clk 0:00:20]} 31. Bxb6 {[%clk 0:01:12]}  Bxb4 {[%clk 0:00:18]} 32. Rc4 {[%clk 0:01:04]}  Bc3 {[%clk 0:00:11]} 33. Bxd4 {[%clk 0:01:04]}  Bxd4 {[%clk 0:00:11]} 34. Rxd4 {[%clk 0:01:05]}  g6 {[%clk 0:00:11]} 35. g4 {[%clk 0:01:03]}  Kg7 {[%clk 0:00:10]} 36. Ke4 {[%clk 0:01:03]}  Ra7 {[%clk 0:00:09]} 37. Rb4 {[%clk 0:01:02]}  h5 {[%clk 0:00:09]} 38. h3 {[%clk 0:01:00]}  hxg4 {[%clk 0:00:09]} 39. hxg4 {[%clk 0:01:01]}  Rc7 {[%clk 0:00:09]} 40. a5 {[%clk 0:00:58]}  Ra7 {[%clk 0:00:09]} 41. Ra4 {[%clk 0:00:57]}  Ra6 {[%clk 0:00:09]} 42. Kd5 {[%clk 0:00:57]}  g5 {[%clk 0:00:07]} 43. f5 {[%clk 0:00:57]}  Kf8 {[%clk 0:00:04]} 44. Kc5 {[%clk 0:00:57]}  Ke7 {[%clk 0:00:04]} 45. Kb5 {[%clk 0:00:57]}  Ra8 {[%clk 0:00:04]} 46. a6 {[%clk 0:00:57]}  Rb8+ {[%clk 0:00:04]} 47. Kc6 {[%clk 0:00:57]}  Rc8+ {[%clk 0:00:04]} 48. Kb7 {[%clk 0:00:57]}  Rd8 {[%clk 0:00:03]} 49. a7 {[%clk 0:00:57]}  Rd7+ {[%clk 0:00:04]} 50. Kc6 {[%clk 0:00:57]}  Rd4 {[%clk 0:00:02]} 51. Rxd4 {[%clk 0:00:54]} 1-0


[Site "https://www.chess.com"]

[Event "Titled Tuesday Blitz February 14 Late 2023"]
[White "Gerbelli Neto, Eduardo"]
[Black "Stanisz, Patryk"]
[WhiteFideId "2103281"]
[BlackFideId "1123106"]
[WhiteElo "2114"]
[BlackElo "2161"]
[Result "0-1"]
[Round "09"]
[TimeControl "180+2"]
[Date "2023.02.14"]
[WhiteClock "0:01:02"]
[BlackClock "0:00:30"]

1. e4 {[%clk 0:03:00]}  c5 {[%clk 0:02:59]} 2. Nc3 {[%clk 0:03:00]}  Nc6 {[%clk 0:02:58]} 3. f4 {[%clk 0:03:01]}  g6 {[%clk 0:02:58]} 4. Nf3 {[%clk 0:03:02]}  Bg7 {[%clk 0:02:59]} 5. Bc4 {[%clk 0:03:02]}  e6 {[%clk 0:02:59]} 6. f5 {[%clk 0:03:03]}  Nge7 {[%clk 0:02:54]} 7. fxe6 {[%clk 0:03:03]}  fxe6 {[%clk 0:02:54]} 8. d3 {[%clk 0:03:03]}  a6 {[%clk 0:02:51]} 9. O-O {[%clk 0:03:03]}  O-O {[%clk 0:02:48]} 10. Qe1 {[%clk 0:02:47]}  b5 {[%clk 0:02:47]} 11. Bb3 {[%clk 0:02:47]}  Nd4 {[%clk 0:02:35]} 12. Bg5 {[%clk 0:02:46]}  h6 {[%clk 0:02:21]} 13. Bh4 {[%clk 0:02:24]}  Nxf3+ {[%clk 0:02:15]} 14. gxf3 {[%clk 0:02:21]}  g5 {[%clk 0:02:08]} 15. Bg3 {[%clk 0:02:15]}  d5 {[%clk 0:02:07]} 16. a4 {[%clk 0:01:56]}  c4 {[%clk 0:02:07]} 17. Ba2 {[%clk 0:01:54]}  b4 {[%clk 0:01:52]} 18. Nd1 {[%clk 0:01:54]}  b3 {[%clk 0:01:51]} 19. cxb3 {[%clk 0:01:47]}  cxd3 {[%clk 0:01:06]} 20. Ne3 {[%clk 0:01:33]}  dxe4 {[%clk 0:00:50]} 21. fxe4 {[%clk 0:01:32]}  Rxf1+ {[%clk 0:00:43]} 22. Qxf1 {[%clk 0:01:30]}  Qd4 {[%clk 0:00:42]} 23. Qf2 {[%clk 0:01:20]}  Bb7 {[%clk 0:00:41]} 24. Rd1 {[%clk 0:01:09]}  Qxe4 {[%clk 0:00:33]} 25. Kf1 {[%clk 0:01:02]}  Rf8 {[%clk 0:00:30]} 0-1


[Site "https://www.chess.com"]

[Event "Titled Tuesday Blitz February 14 Late 2023"]
[White "Ruiz Aguilar, Pablo Alexander"]
[Black "Marin Masis, Jose Esteban"]
[WhiteFideId "4401352"]
[BlackFideId "6508146"]
[WhiteElo "2161"]
[BlackElo "1938"]
[Result "1-0"]
[Round "09"]
[TimeControl "180+2"]
[Date "2023.02.14"]
[WhiteClock "0:00:54"]
[BlackClock "0:00:13"]

1. e4 {[%clk 0:03:00]}  c5 {[%clk 0:02:58]} 2. Nf3 {[%clk 0:03:00]}  Nc6 {[%clk 0:02:58]} 3. d4 {[%clk 0:03:01]}  cxd4 {[%clk 0:02:59]} 4. Nxd4 {[%clk 0:03:02]}  Nf6 {[%clk 0:03:00]} 5. Nc3 {[%clk 0:03:02]}  e5 {[%clk 0:03:00]} 6. Ndb5 {[%clk 0:03:02]}  d6 {[%clk 0:03:01]} 7. Bg5 {[%clk 0:03:03]}  a6 {[%clk 0:03:01]} 8. Na3 {[%clk 0:03:03]}  b5 {[%clk 0:03:01]} 9. Nd5 {[%clk 0:03:03]}  Be7 {[%clk 0:03:02]} 10. Bxf6 {[%clk 0:03:02]}  Bxf6 {[%clk 0:02:58]} 11. c4 {[%clk 0:03:03]}  b4 {[%clk 0:02:54]} 12. Nc2 {[%clk 0:03:03]}  a5 {[%clk 0:02:53]} 13. b3 {[%clk 0:02:43]}  O-O {[%clk 0:02:51]} 14. h4 {[%clk 0:02:41]}  Be6 {[%clk 0:02:38]} 15. Nce3 {[%clk 0:02:35]}  Nd4 {[%clk 0:02:33]} 16. g3 {[%clk 0:02:32]}  Be7 {[%clk 0:02:22]} 17. Bh3 {[%clk 0:02:32]}  Rb8 {[%clk 0:02:00]} 18. Kf1 {[%clk 0:02:31]}  Qd7 {[%clk 0:01:52]} 19. Kg2 {[%clk 0:02:31]}  f5 {[%clk 0:01:47]} 20. exf5 {[%clk 0:02:21]}  Nxf5 {[%clk 0:01:35]} 21. Nxf5 {[%clk 0:01:59]}  Bxf5 {[%clk 0:01:32]} 22. Bxf5 {[%clk 0:01:47]}  Rxf5 {[%clk 0:01:33]} 23. Re1 {[%clk 0:01:41]}  Rbf8 {[%clk 0:01:21]} 24. Nxe7+ {[%clk 0:01:38]}  Qxe7 {[%clk 0:01:19]} 25. Qd5+ {[%clk 0:01:38]}  Kh8 {[%clk 0:01:09]} 26. Re2 {[%clk 0:01:35]}  Qf6 {[%clk 0:01:00]} 27. Rf1 {[%clk 0:01:30]}  Qd8 {[%clk 0:00:48]} 28. Rd1 {[%clk 0:01:28]}  Qf6 {[%clk 0:00:46]} 29. Rdd2 {[%clk 0:01:24]}  Rd8 {[%clk 0:00:19]} 30. Qxa5 {[%clk 0:01:21]}  g5 {[%clk 0:00:19]} 31. hxg5 {[%clk 0:01:18]}  Qxg5 {[%clk 0:00:18]} 32. Qxb4 {[%clk 0:01:09]}  Qh5 {[%clk 0:00:15]} 33. Re3 {[%clk 0:01:02]}  Rdf8 {[%clk 0:00:14]} 34. Qxd6 {[%clk 0:00:55]}  R5f6 {[%clk 0:00:13]} 35. Qxe5 {[%clk 0:00:54]} 1-0


[Site "https://www.chess.com"]

[Event "Titled Tuesday Blitz February 14 Late 2023"]
[White "Cruz Gomez, Miguel Angel"]
[Black "Alfaro, William"]
[WhiteFideId "5137160"]
[BlackFideId "6100457"]
[WhiteElo "1950"]
[BlackElo "2134"]
[Result "0-1"]
[Round "09"]
[TimeControl "180+2"]
[Date "2023.02.14"]
[WhiteClock "0:00:17"]
[BlackClock "0:00:39"]

1. e4 {[%clk 0:03:00]}  c5 {[%clk 0:02:55]} 2. Nc3 {[%clk 0:03:00]}  a6 {[%clk 0:02:55]} 3. g3 {[%clk 0:02:59]}  b5 {[%clk 0:02:53]} 4. Bg2 {[%clk 0:02:57]}  Bb7 {[%clk 0:02:54]} 5. f4 {[%clk 0:02:49]}  e6 {[%clk 0:02:52]} 6. d3 {[%clk 0:02:27]}  d5 {[%clk 0:02:50]} 7. e5 {[%clk 0:02:24]}  Ne7 {[%clk 0:02:44]} 8. Nf3 {[%clk 0:02:11]}  h5 {[%clk 0:02:40]} 9. h3 {[%clk 0:02:07]}  Nf5 {[%clk 0:02:39]} 10. Kf2 {[%clk 0:02:06]}  h4 {[%clk 0:02:23]} 11. g4 {[%clk 0:02:05]}  Ng3 {[%clk 0:02:23]} 12. Re1 {[%clk 0:02:06]}  Nc6 {[%clk 0:02:20]} 13. Ne2 {[%clk 0:01:50]}  Nxe2 {[%clk 0:02:06]} 14. Qxe2 {[%clk 0:01:50]}  Be7 {[%clk 0:02:06]} 15. c3 {[%clk 0:01:49]}  d4 {[%clk 0:02:06]} 16. a4 {[%clk 0:01:44]}  dxc3 {[%clk 0:02:00]} 17. bxc3 {[%clk 0:01:44]}  b4 {[%clk 0:02:00]} 18. Rb1 {[%clk 0:01:27]}  a5 {[%clk 0:02:00]} 19. Be3 {[%clk 0:01:25]}  Qd7 {[%clk 0:01:58]} 20. d4 {[%clk 0:01:17]}  Ba6 {[%clk 0:01:54]} 21. Qc2 {[%clk 0:01:09]}  c4 {[%clk 0:01:53]} 22. Nd2 {[%clk 0:01:04]}  b3 {[%clk 0:01:49]} 23. Qc1 {[%clk 0:00:59]}  Rc8 {[%clk 0:01:48]} 24. Kg1 {[%clk 0:00:51]}  Bf8 {[%clk 0:01:45]} 25. Rf1 {[%clk 0:00:44]}  Ne7 {[%clk 0:01:45]} 26. Ne4 {[%clk 0:00:34]}  Nd5 {[%clk 0:01:35]} 27. f5 {[%clk 0:00:34]}  exf5 {[%clk 0:01:15]} 28. gxf5 {[%clk 0:00:33]}  Be7 {[%clk 0:01:13]} 29. Bg5 {[%clk 0:00:31]}  f6 {[%clk 0:01:11]} 30. e6 {[%clk 0:00:31]}  Qxa4 {[%clk 0:01:09]} 31. Bf4 {[%clk 0:00:24]}  Qc6 {[%clk 0:01:07]} 32. Qe1 {[%clk 0:00:18]}  a4 {[%clk 0:01:04]} 33. Bf3 {[%clk 0:00:15]}  Nxf4 {[%clk 0:01:03]} 34. Nxf6+ {[%clk 0:00:15]}  Bxf6 {[%clk 0:00:54]} 35. Bxc6+ {[%clk 0:00:16]}  Rxc6 {[%clk 0:00:54]} 36. Rxf4 {[%clk 0:00:15]}  a3 {[%clk 0:00:53]} 37. d5 {[%clk 0:00:15]}  Rd6 {[%clk 0:00:53]} 38. Rxc4 {[%clk 0:00:15]}  Bxc4 {[%clk 0:00:53]} 39. Qe4 {[%clk 0:00:15]}  Bxd5 {[%clk 0:00:50]} 40. Qb4 {[%clk 0:00:15]}  Be7 {[%clk 0:00:49]} 41. Qb8+ {[%clk 0:00:15]}  Rd8 {[%clk 0:00:49]} 42. Qb5+ {[%clk 0:00:16]}  Kf8 {[%clk 0:00:48]} 43. f6 {[%clk 0:00:15]}  gxf6 {[%clk 0:00:46]} 44. Rf1 {[%clk 0:00:16]}  Rg8+ {[%clk 0:00:46]} 45. Kf2 {[%clk 0:00:16]}  Rg2+ {[%clk 0:00:43]} 46. Ke3 {[%clk 0:00:17]}  a2 {[%clk 0:00:40]} 47. Qa6 {[%clk 0:00:17]}  b2 {[%clk 0:00:39]} 0-1


[Site "https://www.chess.com"]

[Event "Titled Tuesday Blitz February 14 Late 2023"]
[White "De Souza, Cristiano Gomes"]
[Black "Kujawski, Adam"]
[WhiteFideId "2151758"]
[BlackFideId "1100920"]
[WhiteElo "2018"]
[BlackElo "2173"]
[Result "0-1"]
[Round "09"]
[TimeControl "180+2"]
[Date "2023.02.14"]
[WhiteClock "0:00:52"]
[BlackClock "0:00:18"]

1. d4 {[%clk 0:03:00]}  Nf6 {[%clk 0:02:57]} 2. c4 {[%clk 0:03:00]}  e6 {[%clk 0:02:56]} 3. Nf3 {[%clk 0:03:00]}  c5 {[%clk 0:02:55]} 4. d5 {[%clk 0:02:59]}  d6 {[%clk 0:02:55]} 5. Nc3 {[%clk 0:02:58]}  g6 {[%clk 0:02:55]} 6. h3 {[%clk 0:02:57]}  Bg7 {[%clk 0:02:55]} 7. e4 {[%clk 0:02:57]}  O-O {[%clk 0:02:55]} 8. Be2 {[%clk 0:02:57]}  a6 {[%clk 0:02:55]} 9. a4 {[%clk 0:02:55]}  b6 {[%clk 0:02:55]} 10. O-O {[%clk 0:02:54]}  e5 {[%clk 0:02:55]} 11. Ne1 {[%clk 0:02:51]}  Ne8 {[%clk 0:02:55]} 12. Nd3 {[%clk 0:02:51]}  f5 {[%clk 0:02:54]} 13. f4 {[%clk 0:02:46]}  fxe4 {[%clk 0:02:47]} 14. Nxe4 {[%clk 0:02:45]}  Bf5 {[%clk 0:02:47]} 15. Ng5 {[%clk 0:02:41]}  e4 {[%clk 0:02:33]} 16. Nf2 {[%clk 0:02:40]}  Bd4 {[%clk 0:02:31]} 17. Kh2 {[%clk 0:02:31]}  e3 {[%clk 0:02:20]} 18. Ng4 {[%clk 0:02:30]}  Qe7 {[%clk 0:02:07]} 19. Bf3 {[%clk 0:02:24]}  Nf6 {[%clk 0:01:50]} 20. Nh6+ {[%clk 0:02:21]}  Kh8 {[%clk 0:01:45]} 21. Nxf5 {[%clk 0:02:20]}  gxf5 {[%clk 0:01:45]} 22. Re1 {[%clk 0:02:17]}  Rg8 {[%clk 0:01:30]} 23. Ne6 {[%clk 0:02:16]}  Ng4+ {[%clk 0:01:17]} 24. Bxg4 {[%clk 0:02:06]}  fxg4 {[%clk 0:01:17]} 25. Nxd4 {[%clk 0:02:06]}  gxh3 {[%clk 0:01:07]} 26. gxh3 {[%clk 0:01:53]}  Qh4 {[%clk 0:00:55]} 27. Qe2 {[%clk 0:01:14]}  Qg3+ {[%clk 0:00:21]} 28. Kh1 {[%clk 0:01:14]}  cxd4 {[%clk 0:00:20]} 29. Bxe3 {[%clk 0:00:57]}  Qxh3+ {[%clk 0:00:18]} 30. Qh2 {[%clk 0:00:52]}  Qf3+ {[%clk 0:00:18]} 0-1


[Site "https://www.chess.com"]

[Event "Titled Tuesday Blitz February 14 Late 2023"]
[White "Liu, Casper"]
[Black "Sariego Figueredo, Wilfredo"]
[WhiteFideId "1454153"]
[BlackFideId "3500080"]
[WhiteElo "2278"]
[BlackElo "2318"]
[Result "0-1"]
[Round "09"]
[TimeControl "180+2"]
[Date "2023.02.14"]
[WhiteClock "0:00:19"]
[BlackClock "0:00:49"]

1. d4 {[%clk 0:02:56]}  d5 {[%clk 0:02:59]} 2. Bf4 {[%clk 0:02:56]}  Nf6 {[%clk 0:02:58]} 3. Nf3 {[%clk 0:02:56]}  e6 {[%clk 0:02:59]} 4. e3 {[%clk 0:02:56]}  Bd6 {[%clk 0:02:59]} 5. Bg3 {[%clk 0:02:56]}  O-O {[%clk 0:02:59]} 6. Nbd2 {[%clk 0:02:56]}  c5 {[%clk 0:02:59]} 7. c3 {[%clk 0:02:56]}  Qc7 {[%clk 0:02:59]} 8. Bd3 {[%clk 0:02:57]}  Re8 {[%clk 0:02:49]} 9. Ne5 {[%clk 0:02:54]}  Nc6 {[%clk 0:02:48]} 10. Ndf3 {[%clk 0:02:48]}  Ne7 {[%clk 0:02:35]} 11. Ng5 {[%clk 0:02:45]}  Rf8 {[%clk 0:02:26]} 12. e4 {[%clk 0:01:49]}  cxd4 {[%clk 0:02:16]} 13. cxd4 {[%clk 0:01:46]}  h6 {[%clk 0:02:10]} 14. Ngxf7 {[%clk 0:01:26]}  Rxf7 {[%clk 0:02:07]} 15. Nxf7 {[%clk 0:01:26]}  Kxf7 {[%clk 0:02:08]} 16. e5 {[%clk 0:01:12]}  Bb4+ {[%clk 0:02:06]} 17. Kf1 {[%clk 0:01:12]}  Ne4 {[%clk 0:02:01]} 18. Qf3+ {[%clk 0:01:07]}  Nf5 {[%clk 0:01:56]} 19. Bxe4 {[%clk 0:01:00]}  dxe4 {[%clk 0:01:55]} 20. Qxe4 {[%clk 0:01:01]}  Bd7 {[%clk 0:01:46]} 21. h3 {[%clk 0:00:50]}  Rc8 {[%clk 0:01:39]} 22. Kg1 {[%clk 0:00:46]}  Bc6 {[%clk 0:01:27]} 23. Qe2 {[%clk 0:00:40]}  Qb6 {[%clk 0:01:05]} 24. Qh5+ {[%clk 0:00:33]}  g6 {[%clk 0:01:04]} 25. Qe2 {[%clk 0:00:27]}  Qxd4 {[%clk 0:00:59]} 26. Rd1 {[%clk 0:00:26]}  Nxg3 {[%clk 0:00:52]} 27. Qf3+ {[%clk 0:00:17]}  Bxf3 {[%clk 0:00:51]} 28. Rxd4 {[%clk 0:00:18]}  Ne2+ {[%clk 0:00:48]} 29. Kh2 {[%clk 0:00:18]}  Nxd4 {[%clk 0:00:49]} 30. gxf3 {[%clk 0:00:19]} 0-1


[Site "https://www.chess.com"]

[Event "Titled Tuesday Blitz February 14 Late 2023"]
[White "Georg, Heinz"]
[Black "Tarnowska, Aleksandra"]
[WhiteFideId "4607295"]
[BlackFideId "1180967"]
[WhiteElo "2107"]
[BlackElo "1835"]
[Result "1-0"]
[Round "09"]
[TimeControl "180+2"]
[Date "2023.02.14"]
[WhiteClock "0:01:52"]
[BlackClock "0:00:04"]

1. e4 {[%clk 0:03:00]}  c5 {[%clk 0:02:59]} 2. Nf3 {[%clk 0:03:00]}  e6 {[%clk 0:02:59]} 3. b3 {[%clk 0:03:00]}  d5 {[%clk 0:02:31]} 4. exd5 {[%clk 0:02:59]}  exd5 {[%clk 0:02:32]} 5. Bb5+ {[%clk 0:02:59]}  Bd7 {[%clk 0:02:31]} 6. Qe2+ {[%clk 0:02:59]}  Qe7 {[%clk 0:02:21]} 7. Qxe7+ {[%clk 0:02:51]}  Nxe7 {[%clk 0:02:08]} 8. Bxd7+ {[%clk 0:02:51]}  Nxd7 {[%clk 0:02:06]} 9. O-O {[%clk 0:02:51]}  O-O-O {[%clk 0:01:48]} 10. Ng5 {[%clk 0:02:50]}  f6 {[%clk 0:00:39]} 11. Nf7 {[%clk 0:02:47]}  Rg8 {[%clk 0:00:38]} 12. Nxd8 {[%clk 0:02:47]}  Kxd8 {[%clk 0:00:38]} 13. Bb2 {[%clk 0:02:47]}  h5 {[%clk 0:00:34]} 14. d4 {[%clk 0:02:44]}  b6 {[%clk 0:00:34]} 15. Nd2 {[%clk 0:02:43]}  Nf5 {[%clk 0:00:29]} 16. dxc5 {[%clk 0:02:36]}  bxc5 {[%clk 0:00:30]} 17. Rad1 {[%clk 0:02:33]}  Kc7 {[%clk 0:00:30]} 18. Nf3 {[%clk 0:02:31]}  Kc6 {[%clk 0:00:29]} 19. Rfe1 {[%clk 0:02:30]}  Nd6 {[%clk 0:00:07]} 20. Re6 {[%clk 0:02:14]}  Kc7 {[%clk 0:00:05]} 21. c4 {[%clk 0:02:09]}  d4 {[%clk 0:00:05]} 22. b4 {[%clk 0:02:09]}  a6 {[%clk 0:00:03]} 23. bxc5 {[%clk 0:02:08]}  Nxc5 {[%clk 0:00:04]} 24. Re2 {[%clk 0:01:57]}  d3 {[%clk 0:00:04]} 25. Ree1 {[%clk 0:01:55]}  Nxc4 {[%clk 0:00:05]} 26. Bd4 {[%clk 0:01:54]}  Nd6 {[%clk 0:00:04]} 27. Bxc5 {[%clk 0:01:52]} 1-0


[Site "https://www.chess.com"]

[Event "Titled Tuesday Blitz February 14 Late 2023"]
[White "Estrada Nieto, Julian"]
[Black "Sailer, Mike"]
[WhiteFideId "5101018"]
[BlackFideId "2012901"]
[WhiteElo "2215"]
[BlackElo "2109"]
[Result "1-0"]
[Round "09"]
[TimeControl "180+2"]
[Date "2023.02.14"]
[WhiteClock "0:01:01"]
[BlackClock "0:00:33"]

1. d4 {[%clk 0:03:00]}  d5 {[%clk 0:02:59]} 2. Nf3 {[%clk 0:03:01]}  Nf6 {[%clk 0:02:58]} 3. Bf4 {[%clk 0:03:01]}  Bf5 {[%clk 0:02:57]} 4. e3 {[%clk 0:03:01]}  e6 {[%clk 0:02:56]} 5. c4 {[%clk 0:02:56]}  Nc6 {[%clk 0:02:56]} 6. Nc3 {[%clk 0:02:48]}  Bb4 {[%clk 0:02:53]} 7. Qb3 {[%clk 0:02:38]}  O-O {[%clk 0:02:25]} 8. Be2 {[%clk 0:02:32]}  Ne4 {[%clk 0:02:19]} 9. a3 {[%clk 0:02:29]}  Bxc3+ {[%clk 0:02:18]} 10. bxc3 {[%clk 0:02:29]}  Na5 {[%clk 0:02:12]} 11. Qb4 {[%clk 0:02:24]}  Nxc4 {[%clk 0:02:08]} 12. Bxc4 {[%clk 0:02:23]}  dxc4 {[%clk 0:02:08]} 13. Qxc4 {[%clk 0:02:23]}  Rc8 {[%clk 0:02:07]} 14. O-O {[%clk 0:02:07]}  c5 {[%clk 0:01:56]} 15. Qb3 {[%clk 0:01:43]}  b6 {[%clk 0:01:50]} 16. Rfd1 {[%clk 0:01:36]}  cxd4 {[%clk 0:01:47]} 17. cxd4 {[%clk 0:01:30]}  Nc3 {[%clk 0:01:18]} 18. Rd2 {[%clk 0:01:27]}  Ne4 {[%clk 0:01:15]} 19. Rdd1 {[%clk 0:01:18]}  Rc3 {[%clk 0:01:02]} 20. Qa4 {[%clk 0:01:12]}  Qe7 {[%clk 0:00:58]} 21. Rdc1 {[%clk 0:01:05]}  Rfc8 {[%clk 0:00:55]} 22. Rxc3 {[%clk 0:01:05]}  Nxc3 {[%clk 0:00:50]} 23. Qa6 {[%clk 0:01:03]}  Nd5 {[%clk 0:00:33]} 24. Qxc8+ {[%clk 0:01:01]} 1-0


[Site "https://www.chess.com"]